fUST/lending_fUST_20250718
["ID","MTS","AMOUNT","RATE_DAILY","PERIOD"]
[372905453,1752799841128,-460.0,0.00017534,2]
[372905454,1752799841139,-463.89,0.00017534,2]
[372905455,1752799841149,-1090.61,0.00017534,2]
[372905456,1752799841159,-460.0,0.00017534,2]
[372905457,1752799841168,-497.83,0.00017534,2]
[372905458,1752799841178,-460.0,0.00017534,2]
[372905459,1752799841189,-460.0,0.00017534,2]
[372905460,1752799841199,-460.0,0.00017534,2]
[372905461,1752799841209,-460.0,0.00017534,2]
[372905462,1752799841219,-1291.63,0.00017534,2]
[372905463,1752799841229,-460.0,0.00017534,2]
[372905464,1752799841239,-460.0,0.00017534,2]
[372905465,1752799841249,-2043.22,0.00017534,2]
[372905466,1752799841259,-460.0,0.00017534,2]
[372905467,1752799841269,-460.0,0.00017534,2]
[372905468,1752799841279,-532.87,0.00017534,2]
[372905469,1752799841289,-460.0,0.00017534,2]
[372905470,1752799841302,-460.0,0.00017534,2]
[372905471,1752799841312,-813.8,0.00017534,2]
[372905472,1752799841322,-460.0,0.00017534,2]
[372905473,1752799841332,-460.0,0.00017534,2]
[372905474,1752799841342,-460.0,0.00017534,2]
[372905475,1752799841352,-460.0,0.00017534,2]
[372905476,1752799841362,-764.54,0.00017534,2]
[372905477,1752799841372,-500.0,0.00017565,2]
[372905478,1752799841381,-151.0,0.00017565,2]
[372905479,1752799841392,-689.0,0.00017565,2]
[372905480,1752799841401,-245.0,0.00017565,2]
[372905481,1752799841411,-270.21104171,0.00017572,2]
[372905482,1752799841421,-1000.0,0.00017616,2]
[372905483,1752799841431,-335.42295954,0.0001765,2]
[372905484,1752799841442,-1000.0,0.00017663,2]
[372905486,1752799841453,-1113.33,0.00017707,2]
[372905488,1752799841463,-715.4,0.00017707,2]
[372905490,1752799841473,-811.023062,0.00017708,2]
[372905492,1752799841483,-1005.51,0.00017807,2]
[372905494,1752799841493,-658.62,0.00017807,2]
[372905496,1752799841503,-460.0,0.00017807,2]
[372905498,1752799841513,-1062.63,0.00017807,2]
[372905500,1752799841522,-3377.99,0.00017807,2]
[372905502,1752799841532,-460.0,0.00017808,2]
[372905504,1752799841543,-460.0,0.00017808,2]
[372905506,1752799841556,-483.3,0.00017808,2]
[372905508,1752799841566,-460.0,0.00017808,2]
[372905510,1752799841575,-460.0,0.00017808,2]
[372905512,1752799841585,-1075.73,0.00017808,2]
[372905514,1752799841594,-460.0,0.00017808,2]
[372905516,1752799841603,-460.0,0.00017808,2]
[372905517,1752799841613,-460.0,0.00017808,2]
[372905519,1752799841622,-460.0,0.00017808,2]
[372905522,1752799841632,-1962.27,0.00017808,2]
[372905523,1752799841641,-2067.61,0.00017808,2]
[372905526,1752799841651,-460.0,0.00017808,2]
[372905528,1752799841661,-460.0,0.00017808,2]
[372905531,1752799841670,-463.89,0.00017808,2]
[372905534,1752799841679,-1090.61,0.00017808,2]
[372905536,1752799841688,-460.0,0.00017808,2]
[372905538,1752799841698,-497.83,0.00017808,2]
[372905541,1752799841708,-460.0,0.00017808,2]
[372905543,1752799841717,-590.30261268,0.00017808,2]
[372905545,1752799841727,-460.0,0.00017808,2]
[372905547,1752799841736,-1291.63,0.00017808,2]
[372905549,1752799841746,-460.0,0.00017808,2]
[372905550,1752799841755,-460.0,0.00017808,2]
[372905552,1752799841765,-2043.22,0.00017808,2]
[372905554,1752799841774,-460.0,0.00017808,2]
[372905556,1752799841783,-532.87,0.00017808,2]
[372905558,1752799841793,-460.0,0.00017808,2]
[372905560,1752799841805,-460.0,0.00017808,2]
[372905562,1752799841814,-813.8,0.00017808,2]
[372905564,1752799841823,-296.1077502,0.00017808,2]
[372905566,1752799841832,-460.0,0.00017808,2]
[372905568,1752799841842,-472.07011707,0.00017808,2]
[372905570,1752799841851,-597.08,0.00017808,2]
[372905583,1752799841964,-764.54,0.00017808,2]
[372905586,1752799841975,-500.0,0.00017839,2]
[372905588,1752799841984,-245.0,0.00017839,2]
[372905590,1752799841993,-689.0,0.00017839,2]
[372905592,1752799842002,-160.0,0.00017865,2]
[372905594,1752799842012,-1000.0,0.00017915,2]
[372905595,1752799842021,-420.0,0.00017963,2]
[372905598,1752799842030,-1113.33,0.00017981,2]
[372905600,1752799842040,-715.4,0.00017981,2]
[372905602,1752799842051,-322.64330876,0.00017982,2]
[372905604,1752799842060,-1200.0,0.00018051,2]
[372905606,1752799842070,-1005.51,0.00018081,2]
[372905608,1752799842079,-658.62,0.00018081,2]
[372905610,1752799842089,-460.0,0.00018081,2]
[372905612,1752799842098,-1062.63,0.00018081,2]
[372905614,1752799842108,-3377.99,0.00018081,2]
[372905616,1752799842117,-460.0,0.00018082,2]
[372905618,1752799842127,-483.3,0.00018082,2]
[372905620,1752799842137,-460.0,0.00018082,2]
[372905622,1752799842146,-460.0,0.00018082,2]
[372905624,1752799842156,-1075.73,0.00018082,2]
[372905626,1752799842165,-460.0,0.00018082,2]
[372905628,1752799842175,-465.1845957,0.00018082,2]
[372905630,1752799842184,-460.0,0.00018082,2]
[372905632,1752799842193,-460.0,0.00018082,2]
[372905634,1752799842203,-1962.27,0.00018082,2]
[372905636,1752799842212,-2067.61,0.00018082,2]
[372905638,1752799842221,-460.0,0.00018082,2]
[372905640,1752799842230,-460.0,0.00018082,2]
[372905642,1752799842239,-463.89,0.00018082,2]
[372905644,1752799842249,-1090.61,0.00018082,2]
[372905646,1752799842258,-460.0,0.00018082,2]
[372905648,1752799842267,-497.83,0.00018082,2]
[372905650,1752799842277,-460.0,0.00018082,2]
[372905652,1752799842286,-460.0,0.00018082,2]
[372905654,1752799842298,-1291.63,0.00018082,2]
[372905655,1752799842307,-460.0,0.00018082,2]
[372905657,1752799842316,-394.3229823,0.00018082,2]
[372905660,1752799842326,-2043.22,0.00018082,2]
[372905662,1752799842335,-460.0,0.00018082,2]
[372905664,1752799842345,-532.87,0.00018082,2]
[372905666,1752799842356,-460.0,0.00018082,2]
[372905668,1752799842365,-460.0,0.00018082,2]
[372905670,1752799842375,-813.8,0.00018082,2]
[372905672,1752799842385,-460.0,0.00018082,2]
[372905674,1752799842395,-764.54,0.00018082,2]
[372905676,1752799842405,-500.0,0.00018113,2]
[372905678,1752799842414,-689.0,0.00018113,2]
[372905680,1752799842423,-500.0,0.00018164,2]
[372905682,1752799842432,-340.0,0.00018196,2]
[372905684,1752799842441,-1500.0,0.00018211,2]
[372905685,1752799842453,-1113.33,0.00018255,2]
[372905688,1752799842462,-715.4,0.00018255,2]
[372905690,1752799842472,-160.0,0.0001834,2]
[372905692,1752799842481,-160.0,0.0001834,2]
[372905694,1752799842490,-160.0,0.0001834,2]
[372905696,1752799842501,-160.0,0.0001834,2]
[372905699,1752799842513,-215.59244943,0.0001834,2]
[372905700,1752799842525,-230.85589339,0.0001834,2]
[372905703,1752799842536,-160.0,0.0001834,2]
[372905705,1752799842546,-214.44804168,0.0001834,2]
[372905707,1752799842560,-160.0,0.0001834,2]
[372905709,1752799842570,-839.15451687,0.0001834,2]
[372905710,1752799842580,-12607.95677342,0.0001834,2]
[372905711,1752799842589,-160.0,0.0001834,2]
[372905712,1752799842599,-160.0,0.0001834,2]
[372905713,1752799842609,-525.67742785,0.0001834,2]
[372905716,1752799842619,-476.16111942,0.0001834,2]
[372905718,1752799842629,-387.16,0.00018346,3]
[372905720,1752799842638,-1005.51,0.00018355,2]
[372905722,1752799842649,-658.62,0.00018355,2]
[372905723,1752799842658,-460.0,0.00018355,2]
[372905724,1752799842667,-1062.63,0.00018355,2]
[372905725,1752799842678,-3377.99,0.00018355,2]
[372905726,1752799842688,-460.0,0.00018356,2]
[372905727,1752799842698,-483.3,0.00018356,2]
[372905728,1752799842708,-460.0,0.00018356,2]
[372905729,1752799842717,-460.0,0.00018356,2]
[372905730,1752799842727,-1075.73,0.00018356,2]
[372905732,1752799842736,-460.0,0.00018356,2]
[372905733,1752799842746,-460.0,0.00018356,2]
[372905734,1752799842756,-1962.27,0.00018356,2]
[372905736,1752799842765,-2067.61,0.00018356,2]
[372905737,1752799842775,-460.0,0.00018356,2]
[372905738,1752799842785,-460.0,0.00018356,2]
[372905739,1752799842795,-463.89,0.00018356,2]
[372905740,1752799842810,-1090.61,0.00018356,2]
[372905741,1752799842819,-460.0,0.00018356,2]
[372905742,1752799842828,-497.83,0.00018356,2]
[372905743,1752799842838,-460.0,0.00018356,2]
[372905744,1752799842848,-460.0,0.00018356,2]
[372905745,1752799842857,-1291.63,0.00018356,2]
[372905746,1752799842867,-460.0,0.00018356,2]
[372905747,1752799842876,-2043.22,0.00018356,2]
[372905748,1752799842886,-309.07,0.00018356,2]
[372905749,1752799842895,-532.87,0.00018356,2]
[372905750,1752799842905,-460.0,0.00018356,2]
[372905751,1752799842915,-460.0,0.00018356,2]
[372905752,1752799842924,-813.8,0.00018356,2]
[372905753,1752799842934,-460.0,0.00018356,2]
[372905755,1752799842943,-764.54,0.00018356,2]
[372905757,1752799842953,-500.0,0.00018387,2]
[372905759,1752799842962,-689.0,0.00018387,2]
[372905761,1752799842972,-260.0,0.00018413,2]
[372905763,1752799842981,-703.55635699,0.00018463,2]
[372905765,1752799842991,-1113.33,0.00018529,2]
[372905766,1752799843001,-715.4,0.00018529,2]
[372905768,1752799843010,-1005.51,0.00018629,2]
[372905770,1752799843019,-658.62,0.00018629,2]
[372905772,1752799843029,-460.0,0.00018629,2]
[372905774,1752799843038,-1062.63,0.00018629,2]
[372905775,1752799843051,-3377.99,0.00018629,2]
[372905776,1752799843061,-460.0,0.0001863,2]
[372905777,1752799843070,-483.3,0.0001863,2]
[372905778,1752799843080,-460.0,0.0001863,2]
[372905779,1752799843089,-460.0,0.0001863,2]
[372905780,1752799843099,-1075.73,0.0001863,2]
[372905781,1752799843109,-460.0,0.0001863,2]
[372905782,1752799843119,-460.0,0.0001863,2]
[372905783,1752799843129,-1962.27,0.0001863,2]
[372905784,1752799843138,-2067.61,0.0001863,2]
[372905785,1752799843148,-460.0,0.0001863,2]
[372905786,1752799843158,-460.0,0.0001863,2]
[372905787,1752799843167,-463.89,0.0001863,2]
[372905788,1752799843178,-1090.61,0.0001863,2]
[372905789,1752799843187,-460.0,0.0001863,2]
[372905790,1752799843197,-497.83,0.0001863,2]
[372905791,1752799843207,-460.0,0.0001863,2]
[372905792,1752799843216,-460.0,0.0001863,2]
[372905793,1752799843225,-1291.63,0.0001863,2]
[372905794,1752799843235,-460.0,0.0001863,2]
[372905795,1752799843245,-2043.22,0.0001863,2]
[372905796,1752799843254,-532.87,0.0001863,2]
[372905797,1752799843265,-460.0,0.0001863,2]
[372905798,1752799843275,-460.0,0.0001863,2]
[372905799,1752799843285,-813.8,0.0001863,2]
[372905800,1752799843294,-460.0,0.0001863,2]
[372905801,1752799843308,-764.54,0.0001863,2]
[372905802,1752799843318,-500.0,0.00018661,2]
[372905803,1752799843327,-689.0,0.00018661,2]
[372905804,1752799843340,-2000.0,0.00018759,2]
[372905805,1752799843350,-1113.33,0.00018803,2]
[372905806,1752799843360,-715.4,0.00018803,2]
[372905807,1752799843370,-811.02306197,0.0001884,2]
[372905808,1752799843379,-302.84859387,0.000189,2]
[372905809,1752799843389,-302.90913937,0.000189,2]
[372905810,1752799843399,-902.48014611,0.000189,2]
[372905811,1752799843408,-1005.51,0.00018903,2]
[372905812,1752799843417,-658.62,0.00018903,2]
[372905813,1752799843426,-460.0,0.00018903,2]
[372905814,1752799843436,-1062.63,0.00018903,2]
[372905815,1752799843448,-3377.99,0.00018903,2]
[372905816,1752799843460,-460.0,0.00018904,2]
[372905817,1752799843470,-483.3,0.00018904,2]
[372905818,1752799843480,-441.27602412,0.00018904,2]
[372905819,1752799843491,-460.0,0.00018904,2]
[372905820,1752799843501,-1075.73,0.00018904,2]
[372905821,1752799843511,-460.0,0.00018904,2]
[372905822,1752799843521,-460.0,0.00018904,2]
[372905823,1752799843532,-1962.27,0.00018904,2]
[372905824,1752799843542,-2067.61,0.00018904,2]
[372905825,1752799843554,-460.0,0.00018904,2]
[372905826,1752799843564,-460.0,0.00018904,2]
[372905827,1752799843573,-463.89,0.00018904,2]
[372905828,1752799843584,-1090.61,0.00018904,2]
[372905829,1752799843595,-460.0,0.00018904,2]
[372905830,1752799843604,-497.83,0.00018904,2]
[372905831,1752799843614,-236.5,0.00018904,2]
[372905832,1752799843624,-460.0,0.00018904,2]
[372905833,1752799843633,-1291.63,0.00018904,2]
[372905834,1752799843643,-460.0,0.00018904,2]
[372905835,1752799843653,-2043.22,0.00018904,2]
[372905836,1752799843663,-532.87,0.00018904,2]
[372905837,1752799843672,-460.0,0.00018904,2]
[372905838,1752799843682,-460.0,0.00018904,2]
[372905839,1752799843692,-813.8,0.00018904,2]
[372905840,1752799843701,-460.0,0.00018904,2]
[372905841,1752799843711,-764.54,0.00018904,2]
[372905842,1752799843721,-500.0,0.00018935,2]
[372905843,1752799843730,-689.0,0.00018935,2]
[372905844,1752799843740,-180.0,0.00018961,2]
[372905845,1752799843749,-335.42295954,0.00018962,2]
[372905846,1752799843758,-1113.33,0.00019077,2]
[372905847,1752799843769,-715.4,0.00019077,2]
[372905848,1752799843778,-302.84859387,0.00019089,2]
[372905849,1752799843788,-302.90913937,0.00019089,2]
[372905850,1752799843800,-1005.51,0.00019177,2]
[372905851,1752799843811,-658.62,0.00019177,2]
[372905852,1752799843820,-460.0,0.00019177,2]
[372905853,1752799843829,-1062.63,0.00019177,2]
[372905854,1752799843840,-3377.99,0.00019177,2]
[372905855,1752799843849,-519.41589215,0.00019178,7]
[372905856,1752799843859,-460.0,0.00019178,2]
[372905857,1752799843868,-483.3,0.00019178,2]
[372905858,1752799843877,-460.0,0.00019178,2]
[372905859,1752799843887,-1075.73,0.00019178,2]
[372905860,1752799843897,-427.4368279,0.00019178,2]
[372905861,1752799843907,-165.84,0.00019178,2]
[372905862,1752799843917,-1962.27,0.00019178,2]
[372905863,1752799843927,-248.34584934,0.00019178,2]
[372905864,1752799843936,-151.0,0.00019178,2]
[372905865,1752799843945,-2067.61,0.00019178,2]
[372905866,1752799843955,-460.0,0.00019178,2]
[372905867,1752799843964,-460.0,0.00019178,2]
[372905868,1752799843974,-463.89,0.00019178,2]
[372905869,1752799843983,-1090.61,0.00019178,2]
[372905870,1752799843992,-460.0,0.00019178,2]
[372905871,1752799844002,-497.83,0.00019178,2]
[372905872,1752799844011,-460.0,0.00019178,2]
[372905873,1752799844020,-1291.63,0.00019178,2]
[372905874,1752799844030,-460.0,0.00019178,2]
[372905875,1752799844039,-2043.22,0.00019178,2]
[372905876,1752799844052,-532.87,0.00019178,2]
[372905877,1752799844061,-460.0,0.00019178,2]
[372905878,1752799844071,-542.56,0.00019178,2]
[372905879,1752799844080,-813.8,0.00019178,2]
[372905880,1752799844090,-460.0,0.00019178,2]
[372905881,1752799844110,-764.54,0.00019178,2]
[372905882,1752799844121,-5000.0,0.00019178,2]
[372905883,1752799844131,-666.0,0.00019178,2]
[372905884,1752799844141,-214.212705,0.00019178,2]
[372905885,1752799844151,-500.0,0.00019209,2]
[372905886,1752799844160,-689.0,0.00019209,2]
[372905887,1752799844171,-302.84859387,0.00019278,2]
[372905888,1752799844182,-302.90913937,0.00019278,2]
[372905889,1752799844192,-500.0,0.00019307,2]
[372905890,1752799844202,-284.3208167,0.00019326,2]
[372905891,1752799844213,-100000.0,0.00019329,2]
[372905892,1752799844222,-1113.33,0.00019351,2]
[372905893,1752799844232,-715.4,0.00019351,2]
[372905894,1752799844242,-500.0,0.00019373,2]
[372905895,1752799844251,-500.0,0.00019373,2]
[372905896,1752799844261,-500.0,0.00019373,2]
[372905897,1752799844271,-500.0,0.00019373,2]
[372905898,1752799844280,-370.80328516,0.00019373,2]
[372905899,1752799844290,-500.0,0.00019373,2]
[372905900,1752799844303,-503.46839488,0.00019373,2]
[372905901,1752799844313,-643.78665454,0.00019373,2]
[372905902,1752799844322,-500.0,0.00019373,2]
[372905903,1752799844332,-500.0,0.00019373,2]
[372905904,1752799844342,-501.03534537,0.00019373,2]
[372905905,1752799844352,-500.0,0.00019373,2]
[372905906,1752799844362,-500.0,0.00019373,2]
[372905907,1752799844372,-375.97667728,0.00019373,2]
[372905908,1752799844381,-500.0,0.00019373,2]
[372905909,1752799844391,-500.0,0.00019373,2]
[372905910,1752799844400,-1005.51,0.00019451,2]
[372905911,1752799844410,-658.62,0.00019451,2]
[372905912,1752799844419,-460.0,0.00019451,2]
[372905913,1752799844429,-1062.63,0.00019451,2]
[372905914,1752799844439,-3377.99,0.00019451,2]
[372905915,1752799844451,-219.8559037,0.00019452,2]
[372905916,1752799844462,-460.0,0.00019452,2]
[372905917,1752799844471,-483.3,0.00019452,2]
[372905918,1752799844482,-460.0,0.00019452,2]
[372905919,1752799844492,-1075.73,0.00019452,2]
[372905920,1752799844501,-1962.27,0.00019452,2]
[372905921,1752799844511,-2067.61,0.00019452,2]
[372905922,1752799844522,-546.06407736,0.00019452,2]
[372905923,1752799844533,-460.0,0.00019452,2]
[372905924,1752799844543,-463.89,0.00019452,2]
[372905925,1752799844559,-1090.61,0.00019452,2]
[372905926,1752799844569,-460.0,0.00019452,2]
[372905927,1752799844579,-497.83,0.00019452,2]
[372905928,1752799844592,-460.0,0.00019452,2]
[372905929,1752799844601,-1291.63,0.00019452,2]
[372905930,1752799844611,-460.0,0.00019452,2]
[372905931,1752799844620,-2043.22,0.00019452,2]
[372905932,1752799844629,-532.87,0.00019452,2]
[372905933,1752799844639,-460.0,0.00019452,2]
[372905934,1752799844649,-813.8,0.00019452,2]
[372905935,1752799844659,-460.0,0.00019452,2]
[372905936,1752799844668,-764.54,0.00019452,2]
[372905937,1752799844678,-303.27253039,0.00019467,2]
[372905938,1752799844687,-302.90913937,0.00019467,2]
[372905939,1752799844698,-500.0,0.00019483,2]
[372905940,1752799844838,-689.0,0.00019483,2]
[372905941,1752799844849,-1113.33,0.00019625,2]
[372905942,1752799844858,-715.4,0.00019625,2]
[372905943,1752799844869,-587.0,0.00019631,2]
[372905944,1752799844878,-302.90913937,0.00019656,2]
[372905945,1752799844887,-1005.51,0.00019725,2]
[372905946,1752799844897,-658.62,0.00019725,2]
[372905947,1752799844907,-460.0,0.00019725,2]
[372905948,1752799844917,-1062.63,0.00019725,2]
[372905949,1752799844926,-3377.99,0.00019725,2]
[372905950,1752799844935,-460.0,0.00019726,2]
[372905951,1752799844944,-483.3,0.00019726,2]
[372905952,1752799844955,-460.0,0.00019726,2]
[372905953,1752799844965,-1075.73,0.00019726,2]
[372905954,1752799844975,-1962.27,0.00019726,2]
[372905955,1752799844987,-2067.61,0.00019726,2]
[372905956,1752799844997,-330.64,0.00019726,2]
[372905957,1752799845006,-463.89,0.00019726,2]
[372905958,1752799845016,-1090.61,0.00019726,2]
[372905959,1752799845025,-294.26,0.00019726,2]
[372905960,1752799845035,-497.83,0.00019726,2]
[372905961,1752799845045,-584.21,0.00019726,2]
[372905962,1752799845059,-1291.63,0.00019726,2]
[372905963,1752799845068,-460.0,0.00019726,2]
[372905964,1752799845078,-2043.22,0.00019726,2]
[372905965,1752799845087,-532.87,0.00019726,2]
[372905966,1752799845097,-460.0,0.00019726,2]
[372905967,1752799845107,-813.8,0.00019726,2]
[372905968,1752799845116,-460.0,0.00019726,2]
[372905969,1752799845126,-764.54,0.00019726,2]
[372905970,1752799845139,-500.0,0.00019757,2]
[372905971,1752799845149,-689.0,0.00019757,2]
[372905972,1752799845159,-162.67478966,0.000198,2]
[372905973,1752799845168,-151.4545697,0.00019845,4]
[372905974,1752799845178,-1113.33,0.00019899,2]
[372905975,1752799845190,-715.4,0.00019899,2]
[372905976,1752799845199,-500.0,0.00019921,2]
[372905977,1752799845209,-500.0,0.00019921,2]
[372905978,1752799845219,-500.0,0.00019921,2]
[372905979,1752799845228,-1000.0,0.00019921,2]
[372905980,1752799845238,-811.02306197,0.00019972,2]
[372905981,1752799845248,-151.0,0.00019989,2]
[372905982,1752799845259,-151.0,0.00019989,2]
[372905983,1752799845272,-1005.51,0.00019999,2]
[372905984,1752799845282,-658.62,0.00019999,2]
[372905985,1752799845292,-460.0,0.00019999,2]
[372905986,1752799845304,-1062.63,0.00019999,2]
[372905987,1752799845313,-3377.99,0.00019999,2]
[372905988,1752799845323,-460.0,0.0002,2]
[372905989,1752799845332,-483.3,0.0002,2]
[372905990,1752799845342,-460.0,0.0002,2]
[372905991,1752799845352,-1075.73,0.0002,2]
[372905992,1752799845361,-1962.27,0.0002,2]
[372905993,1752799845370,-2067.61,0.0002,2]
[372905994,1752799845380,-463.89,0.0002,2]
[372905995,1752799845389,-1090.61,0.0002,2]
[372905996,1752799845399,-497.83,0.0002,2]
[372905997,1752799845408,-160.0,0.0002,3]
[372905998,1752799845418,-1291.63,0.0002,2]
[372905999,1752799845427,-460.0,0.0002,2]
[372906000,1752799845437,-2043.22,0.0002,2]
[372906001,1752799845448,-532.87,0.0002,2]
[372906002,1752799845461,-460.0,0.0002,2]
[372906003,1752799845471,-813.8,0.0002,2]
[372906004,1752799845481,-178.26,0.0002,2]
[372906005,1752799845494,-764.54,0.0002,2]
[372906006,1752799845504,-500.0,0.00020031,2]
[372906007,1752799845513,-689.0,0.00020031,2]
[372906008,1752799845524,-691.242,0.00020037,2]
[372906009,1752799845534,-178.57088129,0.00020037,2]
[372906010,1752799845543,-160.0,0.00020173,3]
[372906011,1752799845556,-1113.33,0.00020173,2]
[372906012,1752799845566,-715.4,0.00020173,2]
[372906013,1752799845575,-476.16111942,0.0002018,3]
[372906014,1752799845585,-160.0,0.0002018,3]
[372906015,1752799845595,-12607.95677342,0.0002018,3]
[372906016,1752799845606,-214.44804168,0.0002018,3]
[372906017,1752799845616,-182.59,0.00020273,2]
[372906018,1752799845626,-483.3,0.00020273,2]
[372906019,1752799845635,-590.06349605,0.00020273,2]
[372906020,1752799845645,-1075.73,0.00020273,2]
[372906021,1752799845657,-1005.51,0.00020273,2]
[372906022,1752799845667,-1962.27,0.00020273,2]
[372906023,1752799845678,-2067.61,0.00020273,2]
[372906024,1752799845689,-658.62,0.00020273,2]
[372906025,1752799845700,-463.89,0.00020273,2]
[372906026,1752799845709,-1090.61,0.00020273,2]
[372906028,1752799845719,-497.83,0.00020273,2]
[372906029,1752799845738,-460.0,0.00020273,2]
[372906030,1752799845755,-1291.63,0.00020273,2]
[372906031,1752799845767,-460.0,0.00020273,2]
[372906032,1752799845778,-1062.63,0.00020273,2]
[372906033,1752799845788,-2043.22,0.00020273,2]
[372906034,1752799845801,-532.87,0.00020273,2]
[372906035,1752799845811,-460.0,0.00020273,2]
[372906036,1752799845820,-813.8,0.00020273,2]
[372906038,1752799845829,-3377.99,0.00020273,2]
[372906040,1752799845838,-764.54,0.00020273,2]
[372906042,1752799845848,-335.42295954,0.00020274,2]
[372906043,1752799845858,-500.0,0.00020305,2]
[372906044,1752799845868,-689.0,0.00020305,2]
[372906045,1752799845878,-1113.33,0.00020447,2]
[372906046,1752799845889,-715.4,0.00020447,2]
[372906047,1752799845901,-161.0,0.000205,2]
[372906048,1752799845911,-161.0,0.000205,2]
[372906049,1752799845930,-161.0,0.000205,2]
[372906050,1752799845947,-161.0,0.000205,3]
[372906052,1752799845956,-161.0,0.000205,3]
[372906054,1752799845966,-161.0,0.000205,3]
[372906056,1752799845976,-483.3,0.00020547,2]
[372906058,1752799845986,-1075.73,0.00020547,2]
[372906060,1752799845995,-1005.51,0.00020547,2]
[372906062,1752799846005,-1962.27,0.00020547,2]
[372906063,1752799846015,-2067.61,0.00020547,2]
[372906065,1752799846024,-658.62,0.00020547,2]
[372906067,1752799846034,-463.89,0.00020547,2]
[372906069,1752799846044,-1090.61,0.00020547,2]
[372906071,1752799846056,-497.83,0.00020547,2]
[372906073,1752799846066,-460.0,0.00020547,2]
[372906075,1752799846075,-1291.63,0.00020547,2]
[372906076,1752799846084,-460.0,0.00020547,2]
[372906077,1752799846094,-1062.63,0.00020547,2]
[372906078,1752799846103,-2043.22,0.00020547,2]
[372906079,1752799846113,-532.87,0.00020547,2]
[372906080,1752799846122,-460.0,0.00020547,2]
[372906081,1752799846131,-813.8,0.00020547,2]
[372906082,1752799846141,-3377.99,0.00020547,2]
[372906083,1752799846151,-764.54,0.00020547,2]
[372906084,1752799846160,-500.0,0.00020579,2]
[372906085,1752799846170,-689.0,0.00020579,2]
[372906086,1752799846180,-1113.33,0.00020721,2]
[372906087,1752799846190,-715.4,0.00020721,2]
[372906088,1752799846201,-576.2009174,0.0002074,2]
[372906089,1752799846211,-177.9047646,0.0002074,2]
[372906090,1752799846220,-230.3749189,0.0002074,2]
[372906091,1752799846230,-159.7589233,0.0002074,2]
[372906092,1752799846239,-159.7589235,0.0002074,2]
[372906093,1752799846249,-687.67615539,0.00020821,2]
[372906094,1752799846259,-483.3,0.00020821,2]
[372906095,1752799846268,-151.0,0.00020821,2]
[372906096,1752799846278,-151.0,0.00020821,2]
[372906097,1752799846288,-1075.73,0.00020821,2]
[372906098,1752799846299,-151.0,0.00020821,2]
[372906099,1752799846309,-1005.51,0.00020821,2]
[372906100,1752799846320,-151.0,0.00020821,2]
[372906101,1752799846329,-161.782068,0.00020821,2]
[372906102,1752799846339,-151.0,0.00020821,2]
[372906103,1752799846349,-1962.27,0.00020821,2]
[372906104,1752799846358,-151.0,0.00020821,2]
[372906105,1752799846368,-2067.61,0.00020821,2]